Workbook

Sheet 1
A1: Школа | B1: ГБОУ "Маскаринская школа -интернат для детей с ОВЗ" | E1: Отд./корп | F1: 12 день | I1: День | J1: 07.10.2022.
A3: Прием пищи | B3: Раздел | C3: № рец. | D3: Блюдо | E3: Выход, г | F3: Цена | G3: Калорийность | H3: Белки | I3: Жиры | J3: Углеводы
A4: Завтрак | B4: хлеб пшен | C4: 37 | D4: Хлеб пшенич. | E4: 120 | F4: 4.92 | G4: 94.7 | H4: 3.1 | I4: 0.2 | J4: 20.1
B5: масло слив | C5: 50 | D5: Масло слив. | E5: 10 | F5: 5.59 | G5: 700 | H5: 0.4 | I5: 62.5 | J5: 0.8
B6: гор блюдо | C6: 23 | D6: Каша геркулес молоч | E6: 200/10 | F6: 6,91/5,59 | G6: 212 | H6: 9.7 | I6: 8.3 | J6: 36.8
B7: закуска | C7: 48 | D7: Сыр | E7: 24 | F7: 13.94 | G7: 67.4 | H7: 4.3 | I7: 5.4 | J7: 0
B8: фрукт | C8: 61 | D8: Апельсин | E8: 100 | F8: 11.11 | G8: 34.2 | H8: 1.4 | I8: 0.3 | J8: 8.1
B9: гор напиток | C9: 70 | D9: Чай слад. | E9: 200 | F9: 1.50 | G9: 39.9 | H9: 0.1 | I9: 0 | J9: 9.9
G10: =SUM(G4:G9) -> 1148.2 | H10: =SUM(H4:H9) -> 19 | I10: =SUM(I4:I9) -> 76.7 | J10: =SUM(J4:J9) -> 75.7
A11: Завтрак 2 | B11: выпечка | C11: 41 | D11: Запеканка с творогом | E11: 150/15 | F11: 56,75/2,85 | G11: 325 | H11: 20.44 | I11: 20 | J11: 29.6
B12: напиток | C12: 53 | D12: Компот из смеси с/ф | E12: 200 | F12: 6.00 | G12: 110 | H12: 4 | I12: 0.06 | J12: 35.2
B13: хлеб | C13: 37 | D13: Хлеб пшенич. | E13: 120 | F13: 6.56 | G13: 94.7 | H13: 3.1 | I13: 0.2 | J13: 20.1
B14: фрукт | C14: 62 | D14: Банан | E14: 100 | F14: 10.18 | G14: 64.2 | H14: 1.4 | I14: 0.3 | J14: 12.1
G15: =SUM(G11:G14) -> 593.9 | H15: =SUM(H11:H14) -> 28.94 | I15: =SUM(I11:I14) -> 20.56 | J15: =SUM(J11:J14) -> 97
A16: Обед | B16: 1 блюдо | C16: 1 | D16: Щи к/м со сметаной | E16: 250/15 | F16: 26,94/2,85 | G16: 194.9 | H16: 9.1 | I16: 10.5 | J16: 15.9
B17: закуска | C17: 35 | D17: Салат из моркови | E17: 100 | F17: 7.00 | G17: 98.8 | H17: 1.16 | I17: 8.3 | J17: 14.6
B18: 2 блюдо | C18: 22 | D18: Каша гречн. мол. | E18: 200/10 | F18: 6.39 | G18: 393.1 | H18: 12 | I18: 11.4 | J18: 59.1
B19: напиток | C19: 57 | D19: Сок | E19: 200 | F19: 15.87 | G19: 94 | H19: 0.8 | I19: 0 | J19: 23
B20: гарнир | C20: 25 | D20: Гуляш из говядины | E20: 150 | F20: 20.00 | G20: 132.4 | H20: 10 | I20: 15.3 | J20: 5.5
B21: хлеб дар. | C21: 36 | D21: Хлеб "Дарницкий" | E21: 80 | F21: 2.87 | G21: 81.6 | H21: 2.6 | I21: 0.4 | J21: 17
G22: =SUM(G16:G21) -> 994.8 | H22: =SUM(H16:H21) -> 35.66 | I22: =SUM(I16:I21) -> 45.9 | J22: =SUM(J16:J21) -> 135.1
A25: Полдник | B25: кисломол. | C25: 58 | D25: Ряженка | E25: 200 | F25: 17.54 | G25: 80 | H25: 12 | I25: 2 | J25: 8.4
B26: фрукт | C26: 60 | D26: Яблоки св. | E26: 100 | F26: 5.69 | G26: 68.6 | H26: 0.6 | I26: 0.6 | J26: 14.3
G27: =SUM(G25:G26) -> 149 | H27: =SUM(H25:H26) -> 12.6 | I27: =SUM(I25:I26) -> 2.6 | J27: =SUM(J25:J26) -> 22.7
A29: Ужин | B29: гор блюда | C29: 21 | D29: Каша рис молочный | E29: 200/10 | F29: 6,40/5,59 | G29: 277.5 | H29: 5.8 | I29: 9.2 | J29: 42.6
B30: хлеб | C30: 36 | D30: Хлеб "Дарницкий" | E30: 80 | F30: 2.87 | G30: 81.6 | H30: 2.6 | I30: 0.4 | J30: 17
B31: масло слив | C31: 50 | D31: Масло слив. | E31: 10 | F31: 5.59 | G31: 700 | H31: 0.4 | I31: 62.5 | J31: 0.8
B32: гарнир | C32: 72 | D32: Рыбные котлеты | E32: 150 | F32: 74.50 | G32: 97.1 | H32: 13.7 | I32: 6.2 | J32: 4.4
B33: гор напиток | C33: 52 | D33: Чай с мол. | E33: 200 | F33: 8.03 | G33: 30 | H33: 1.64 | I33: 1.64 | J33: 2.38
G34: =SUM(G29:G33) -> 1186 | H34: =SUM(H29:H33) -> 24.14 | I34: =SUM(I29:I33) -> 79.94 | J34: =SUM(J29:J33) -> 67.18
